bitfinex/quotes_SOLUSD_20240705
["timestamp","ask_amount","ask_price","bid_price","bid_amount"]
[1720151263130,8.0508,124.21,124.09,4.0506]
[1720151263131,0.17,124.24,124.09,5.64409988]
[1720151263324,20.17,124.25,124.1,8.0578]
[1720151263633,8.0503,124.22,124.1,8.0578]
[1720151263833,8.2209,124.21,124.09,8.0584]
[1720151264225,0.80586671,124.11,124.08,33.96497327]
[1720151264426,0.80586671,124.11,124.08,5.75837327]
[1720151264855,0.80586671,124.11,124.05,20.1525]
[1720151265141,0.80586671,124.11,124.03,8.0625]
[1720151265355,0.80586671,124.11,124.03,13.58456001]
[1720151265515,0.80586671,124.11,124.03,5.52206001]
[1720151265714,0.80586671,124.11,124.02,20.1571]
[1720151265914,0.80586671,124.11,124.01,8.0637]
[1720151266224,0.80586671,124.11,124.02,8.0631]
[1720151266622,0.80586671,124.11,124.01,20.1586]
[1720151267043,0.80586671,124.11,124.02,8.0631]
[1720151267244,0.80586671,124.11,124.01,20.1586]
[1720151267424,0.80586671,124.11,124.06,8.0604]
[1720151267624,0.80586671,124.11,124.05,20.1524]
[1720151268145,0.80586671,124.11,124.06,0.17]
[1720151268359,0.80586671,124.11,124.06,20.17]
[1720151268844,0.80586671,124.11,124.06,0.17]
[1720151269415,0.80586671,124.11,124.03,28.0625]
[1720151269612,0.80586671,124.11,124.04,0.17]
[1720151269918,0.80586671,124.11,124.03,28.0624]
[1720151270215,0.80586671,124.11,124.0,8.0639]
[1720151270420,0.80586671,124.11,124.01,20.1589]
[1720151270714,0.80586671,124.11,123.99,264.94090322]
[1720151270715,0.80586671,124.11,124.0,8.0645]
[1720151270923,0.80586671,124.11,123.99,260.89030322]
[1720151271115,0.80586671,124.11,123.99,301.21560322]
[1720151271318,0.80586671,124.11,124.02,20.1574]
[1720151271629,0.80586671,124.11,124.03,20.0]
[1720151271819,0.80586671,124.11,124.01,20.0]
[1720151272229,0.80586671,124.11,124.0,20.0]
[1720151272522,0.80586671,124.11,124.05,20.1516]
[1720151272829,0.80586671,124.11,124.06,28.2301]
[1720151273344,0.80586671,124.11,124.06,20.17]
[1720151273643,0.80586671,124.11,123.99,260.89030322]
[1720151273844,8.0594,124.08,123.99,5.59030322]
[1720151274014,8.0601,124.07,123.96,8.414956]
[1720151274220,20.1511,124.07,123.92,255.3]
[1720151274420,6.1058,124.08,123.93,8.0684]
[1720151274421,8.0617,124.05,123.93,8.0684]
[1720151274619,0.17,124.04,123.93,8.0684]
[1720151275029,0.17,124.04,123.94,20.1704]
[1720151275325,0.17,124.04,123.94,8.0682]
[1720151275524,8.2314,124.05,123.93,28.2408]
[1720151275725,8.062,124.04,123.93,20.1719]
[1720151275932,0.17,124.03,123.92,22.00926557]
[1720151276144,0.17,124.05,123.92,5.51727994]
[1720151276441,0.17,124.05,123.87,315.53911859]
[1720151276442,14.5376,123.98,123.87,60.23911859]
[1720151276648,6.4718,123.98,123.87,68.31141859]
[1720151276831,6.4718,123.98,123.87,73.86883785]
[1720151277153,0.17,123.97,123.87,45.61443785]
[1720151277524,0.17,123.97,123.87,53.68733785]
[1720151278147,6.4718,123.98,123.87,45.61443785]
[1720151278531,6.4718,123.98,123.89,20.1782]
[1720151278838,6.4718,123.98,123.87,45.61443785]
[1720151279228,6.4718,123.98,123.87,53.68713785]
[1720151279539,6.4718,123.98,123.87,45.61443785]
[1720151279746,6.4718,123.98,123.9,0.17]
[1720151280334,15.7144,123.99,123.92,8.0696]
[1720151280538,15.7144,123.99,123.93,20.17]
[1720151280846,15.7144,123.99,123.9,0.17]
[1720151281159,15.7144,123.99,123.88,20.0]
[1720151281331,15.7144,123.99,123.87,40.05701859]
[1720151281529,20.0,123.98,123.87,40.05701859]
[1720151281720,0.17,123.97,123.87,40.05701859]
[1720151282340,6.2986,123.96,123.87,40.05701859]
[1720151282540,20.17,123.95,123.87,40.05701859]
[1720151283249,8.0698,123.92,123.87,40.05701859]
[1720151283566,0.17,123.91,123.87,40.05701859]
[1720151284259,0.80586671,123.89,123.87,40.05701859]
[1720151290866,0.80586671,123.89,123.87,23.39041859]
[1720151291185,8.0729,123.87,123.84,4.04134744]
[1720151291356,8.87766671,123.89,123.84,4.04134744]
[1720151292728,8.87766671,123.89,123.81,0.1]
[1720151292729,6.3346,123.87,123.81,0.1]
[1720151292993,8.075,123.84,123.81,0.1]
[1720151293172,6.3346,123.87,123.81,0.1]
[1720151293364,0.17,123.86,123.81,0.1]
[1720151293562,8.244,123.86,123.81,0.1]
[1720151293765,0.17,123.86,123.81,0.1]
[1720151293960,8.0743,123.85,123.81,0.1]
[1720151294201,0.17,123.86,123.81,0.1]
[1720151294477,8.0749,123.84,123.81,0.1]
[1720151294687,0.17,123.86,123.81,0.1]
[1720151294688,8.2442,123.86,123.81,0.1]
[1720151294988,8.0746,123.85,123.81,0.1]
[1720151295169,8.0762,123.82,123.81,0.1]
[1720151295359,8.0758,123.83,123.81,0.1]
[1720151295558,0.17,123.82,123.81,0.1]
[1720151295989,8.2462,123.82,123.81,0.1]
[1720151296198,8.0795,123.77,123.74,1.7761]
[1720151296505,8.078,123.8,123.74,1.7761]
[1720151296678,0.17,123.82,123.74,1.7761]
[1720151296877,20.17,123.82,123.74,1.7761]
[1720151297169,20.0,123.82,123.74,1.7761]
[1720151297374,0.17,123.81,123.74,1.7761]
[1720151297667,20.0,123.82,123.74,1.7761]
[1720151297878,6.3346,123.87,123.74,1.7761]
[1720151298075,6.3346,123.87,123.78,8.0787]
[1720151298261,0.80586671,123.89,123.78,8.0787]
[1720151298459,0.80586671,123.89,123.77,20.1987]
[1720151298657,0.80586671,123.89,123.79,8.0775]
[1720151298963,0.80586671,123.89,123.8,20.17]
[1720151299172,0.80586671,123.89,123.8,0.17]
[1720151299401,0.80586671,123.89,123.88,20.1808]
[1720151299687,15.3445,124.01,123.9,8.071]
[1720151299897,3.95391303,124.02,123.91,20.17]
[1720151300112,3.95391303,124.02,123.93,20.171]
[1720151300272,3.95391303,124.02,123.94,0.17]
[1720151301381,3.95391303,124.02,123.94,20.17]
[1720151301575,3.95391303,124.02,123.94,28.2383]
[1720151301789,3.95391303,124.02,123.94,20.17]
[1720151303289,3.95391303,124.02,123.91,5.76695733]
[1720151303610,3.95391303,124.02,123.93,20.1711]
[1720151303904,3.95391303,124.02,123.94,0.17]
[1720151304268,0.80684203,123.95,123.94,0.17]
[1720151304471,0.80684203,123.95,123.91,20.0]
[1720151304697,0.80684203,123.95,123.9,20.0]
[1720151304900,0.80684203,123.95,123.87,91.14014314]
[1720151305109,0.80684203,123.95,123.87,5.61164314]
[1720151305304,0.80684203,123.95,123.87,13.68404314]
[1720151305496,0.80684203,123.95,123.85,14.4731]
[1720151305676,0.80684203,123.95,123.85,12.14598673]
[1720151305874,0.80684203,123.95,123.86,28.2555]
[1720151306178,0.80684203,123.95,123.86,28.2556]
[1720151306372,0.80684203,123.95,123.85,12.14598673]
[1720151306573,8.0692,123.93,123.85,5.74658673]
[1720151306777,8.0692,123.93,123.81,15.1268]
[1720151306778,0.17,123.94,123.81,15.1268]
[1720151306978,0.17,123.94,123.79,20.1953]
[1720151307175,0.17,123.94,123.79,25.89442229]
[1720151307414,0.17,123.94,123.79,5.69912229]
[1720151307415,8.0711,123.9,123.79,5.69912229]
[1720151307699,8.2403,123.91,123.78,645.4]
[1720151307877,0.17,123.9,123.78,645.4]
[1720151308074,20.1742,123.93,123.76,20.2001]
[1720151308279,8.073,123.87,123.76,5.68630377]
[1720151308502,8.073,123.87,123.75,15.8515]
[1720151308702,0.17,123.88,123.76,8.08]
[1720151309010,8.0713,123.9,123.77,8.0789]
[1720151309179,8.0713,123.9,123.76,20.1998]
[1720151309180,0.17,123.89,123.78,8.0788]
[1720151309514,5.76433001,123.94,123.75,21.60734889]
[1720151309675,20.0,123.93,123.75,23.47664425]
[1720151309875,0.80684203,123.95,123.8,40.3864]
[1720151310102,0.80684203,123.95,123.84,20.1857]
[1720151310417,0.80684203,123.95,123.85,0.17]
[1720151310588,0.80684203,123.95,123.85,20.17]
[1720151310783,8.87464203,123.95,123.85,20.17]
[1720151311083,0.80684203,123.95,123.86,20.0]
[1720151311402,8.2385,123.94,123.85,0.17]
[1720151311606,8.2385,123.94,123.84,20.0]
[1720151311607,8.07,123.92,123.84,20.0]
[1720151311900,8.07,123.92,123.78,82.4556]
[1720151311901,0.17,123.94,123.83,0.17]
[1720151312082,8.0697,123.92,123.83,0.17]
[1720151312285,0.17,123.91,123.78,20.1956]
[1720151312612,8.0733,123.87,123.75,27.82684425]
[1720151313109,8.2437,123.86,123.75,1.86929536]
[1720151313313,8.0743,123.85,123.75,1.86929536]
[1720151313493,0.17,123.86,123.75,1.86929536]
[1720151313887,0.17,123.86,123.75,22.07089536]
[1720151314093,8.0735,123.87,123.75,22.07089536]
[1720151314378,5.77839004,123.9,123.8,37.9126]
[1720151314581,5.77839004,123.9,123.88,20.1792]
[1720151314916,0.80684203,123.95,123.88,20.1792]
[1720151314917,0.80684203,123.95,123.89,0.17]
[1720151315232,0.80684203,123.95,123.89,8.2411]
[1720151315407,0.80684203,123.95,123.9,20.0]
[1720151315597,0.80684203,123.95,123.89,0.17]
[1720151315598,0.80684203,123.95,123.91,0.17]
[1720151315799,0.80684203,123.95,123.89,20.17]
[1720151315997,0.80684203,123.95,123.89,28.2415]
[1720151316194,0.80684203,123.95,123.9,8.0707]
[1720151316402,0.80684203,123.95,123.91,20.17]
[1720151316895,0.80684203,123.95,123.91,20.0]
[1720151317096,0.80684203,123.95,123.87,20.0]
[1720151317301,0.80684203,123.95,123.83,102.6368]
[1720151317302,0.80684203,123.95,123.86,0.17]
[1720151317511,8.87524203,123.95,123.83,70.3353]
[1720151317755,8.87464203,123.95,123.83,90.5232]
[1720151318034,0.80684203,123.95,123.89,8.0713]
[1720151318201,0.80684203,123.95,123.83,67.90013957]
[1720151318533,0.80684203,123.95,123.86,20.1835]
[1720151318746,0.80684203,123.95,123.87,20.0]
[1720151318914,0.80684203,123.95,123.85,28.0741]
[1720151319121,0.80684203,123.95,123.85,20.0]
[1720151319640,8.0686,123.94,123.83,88.08883957]
[1720151319857,0.80684203,123.95,123.85,20.1843]
[1720151320044,0.80684203,123.95,123.85,28.258]
[1720151320345,0.80684203,123.95,123.85,20.1843]
[1720151320517,0.80684203,123.95,123.85,28.2585]
[1720151320719,0.80684203,123.95,123.78,228.46570294]
[1720151320720,0.80684203,123.95,123.82,25.9224917]
[1720151320944,8.0685,123.94,123.83,20.0]
[1720151321121,0.80684203,123.95,123.83,20.0]
[1720151321317,8.0691,123.93,123.82,20.0]
[1720151321651,0.17,123.94,123.82,28.0758]
[1720151321948,0.17,123.94,123.82,8.0758]
[1720151322133,15.0001,123.92,123.8,5.59632917]
[1720151322376,20.17,123.91,123.8,5.59632917]
[1720151322644,15.0001,123.92,123.82,20.1893]
[1720151322830,15.0001,123.92,123.83,8.075]
[1720151323334,15.0001,123.92,123.78,88.14509052]
[1720151323335,23.0704,123.92,123.78,88.14509052]
[1720151323539,8.0709,123.91,123.78,96.22349052]
[1720151323741,15.0001,123.92,123.78,88.14509052]
[1720151324340,23.0699,123.92,123.79,8.0775]
[1720151324647,15.0001,123.92,123.78,67.94919052]
[1720151324870,15.0001,123.92,123.86,8.0734]
[1720151325157,6.3015,123.93,123.87,0.17]
[1720151325313,6.3015,123.93,123.87,8.2423]
[1720151325516,6.3015,123.93,123.87,0.17]
[1720151325742,6.3015,123.93,123.86,0.17]
[1720151326456,21.2663,123.98,123.89,8.0716]
[1720151326642,21.2663,123.98,123.9,0.17]
[1720151327353,21.2663,123.98,123.9,8.2407]
[1720151327647,21.2663,123.98,123.9,0.17]
[1720151328025,21.2663,123.98,123.89,0.17]
[1720151328557,21.2663,123.98,123.88,0.17]
[1720151328720,0.17,123.97,123.88,0.17]
[1720151328921,0.17,123.97,123.86,25.72757356]
[1720151329145,0.17,123.97,123.86,5.72757356]
[1720151329337,0.17,123.97,123.82,62.26]
[1720151329540,8.2368,123.97,123.85,8.0739]
[1720151329949,0.17,123.97,123.83,20.188]
[1720151330251,8.2365,123.97,123.85,8.0737]
[1720151330548,8.0672,123.96,123.83,28.2629]
[1720151330727,0.17,123.97,123.83,20.188]
[1720151330938,0.17,123.95,123.83,20.188]
[1720151331131,8.0671,123.96,123.84,8.0747]
[1720151331650,8.0671,123.96,123.85,20.0]
[1720151331820,8.0684,123.94,123.85,20.0]
[1720151332021,0.17,123.95,123.84,20.0]
[1720151332629,21.2663,123.98,123.84,28.0747]
[1720151332823,0.17,123.97,123.85,8.0742]
[1720151333022,0.17,123.97,123.86,20.0]
[1720151333217,8.0685,123.94,123.86,20.0]
[1720151333450,0.17,123.93,123.82,5.63404382]
[1720151333667,8.0684,123.94,123.82,8.0761]
[1720151333867,8.2394,123.93,123.81,8.0762]
[1720151334077,0.17,123.93,123.81,8.0766]
[1720151334380,6.0168,123.92,123.81,8.0768]
[1720151334545,14.0866,123.92,123.81,8.0768]
[1720151335061,6.0168,123.92,123.82,20.1897]
[1720151335384,6.0168,123.92,123.86,8.0735]
[1720151335546,6.0168,123.92,123.84,20.186]
[1720151335748,6.0168,123.92,123.85,20.17]
[1720151336459,6.0168,123.92,123.85,0.17]
[1720151336769,6.0168,123.92,123.84,0.17]
[1720151337967,6.0168,123.92,123.85,8.0739]
[1720151338275,6.0168,123.92,123.86,20.0]
[1720151338575,6.0168,123.92,123.84,0.17]
[1720151338879,6.0168,123.92,123.83,20.0]
[1720151339049,6.0168,123.92,123.84,8.0743]
[1720151339249,6.0168,123.92,123.85,20.0]
[1720151339866,6.0168,123.92,123.84,20.1864]
[1720151340070,6.0168,123.92,123.85,28.0741]
[1720151340277,6.0168,123.92,123.86,0.17]
[1720151340451,6.5273,123.97,123.87,20.182]
[1720151340655,6.5273,123.97,123.88,0.17]
[1720151340856,14.5943,123.97,123.86,0.17]
[1720151341264,6.5273,123.97,123.85,0.17]
[1720151341461,6.5273,123.97,123.87,8.0728]
[1720151341672,6.5273,123.97,123.88,20.17]
[1720151341876,6.5273,123.97,123.88,40.3502]
[1720151342055,6.5273,123.97,123.9,8.0707]
[1720151342254,6.5273,123.97,123.91,20.17]
[1720151342983,6.5273,123.97,123.93,8.0687]
[1720151343277,8.42041489,124.04,123.94,28.2383]
[1720151343278,6.5049,124.02,123.94,28.2383]
[1720151343580,6.5049,124.02,123.96,8.067]
[1720151343777,6.5049,124.02,123.97,20.17]
[1720151344086,6.5049,124.02,123.97,28.2363]
[1720151344256,0.80664677,123.98,123.97,20.17]
[1720151344452,0.80664677,123.98,123.97,28.2364]
[1720151344785,0.80664677,123.98,123.97,20.17]
[1720151345469,0.80664677,123.98,123.97,28.2364]
[1720151346478,0.80664677,123.98,123.97,20.17]
[1720151346876,0.80664677,123.98,123.97,28.2364]
[1720151347794,16.4478,124.09,124.03,8.0622]
[1720151347795,0.1,124.09,124.03,8.0622]
[1720151347973,0.1,124.09,124.04,20.17]
[1720151348278,0.1,124.09,124.04,20.0]
[1720151348487,0.1,124.09,124.0,8.0644]
[1720151348675,0.1,124.09,124.01,20.0]
[1720151349269,0.1,124.09,123.98,20.0]
[1720151349585,0.1,124.09,124.0,8.0639]
[1720151349790,0.1,124.09,124.01,20.0]
[1720151349957,0.1,124.09,124.01,20.1582]
[1720151350294,8.1587,124.09,124.02,20.0]
[1720151350497,8.1587,124.09,123.98,40.1642]
[1720151350667,0.1,124.09,123.98,40.1642]
[1720151350864,8.1588,124.09,123.98,40.1642]
[1720151351065,0.1,124.09,123.98,48.2299]
[1720151351283,0.1,124.09,123.99,8.0651]
[1720151351594,0.1,124.09,124.0,20.0]
[1720151351889,0.1,124.09,124.04,20.1537]
[1720151352072,0.1,124.09,124.05,28.2312]
[1720151352276,0.1,124.09,124.05,20.0]
[1720151352581,0.1,124.09,123.98,8.0655]
[1720151352783,8.0599,124.07,123.97,5.85262482]
[1720151352966,0.1,124.09,123.96,255.3]
[1720151353294,0.1,124.09,124.03,8.0625]
[1720151353472,0.1,124.09,123.96,261.13716138]
[1720151353473,0.1,124.09,124.04,8.0617]
[1720151353685,0.1,124.09,124.04,20.1537]
[1720151353980,0.1,124.09,124.05,8.061]
[1720151354366,0.1,124.09,124.01,60.4782]
[1720151354584,0.1,124.09,124.02,20.17]
[1720151354782,0.1,124.09,123.98,20.1638]
[1720151355564,0.27,124.09,123.98,5.71517204]
[1720151355903,0.27,124.09,123.93,16.1629]
[1720151355904,8.0617,124.05,123.93,16.1629]
[1720151356196,8.0626,124.03,123.92,20.1735]
[1720151356499,0.17,124.04,123.94,8.0682]
[1720151356687,6.0204,124.05,124.02,8.0626]
[1720151356992,0.1,124.09,124.02,20.1572]
[1720151357365,0.1,124.09,124.02,8.0626]
[1720151357571,0.1,124.09,124.01,20.3281]
[1720151357769,0.1,124.09,124.02,0.17]
[1720151358098,0.1,124.09,123.99,20.0]
[1720151358263,0.1,124.09,124.0,0.17]
[1720151358682,0.1,124.09,124.0,8.2344]
[1720151358890,0.1,124.09,124.0,0.17]
[1720151359101,0.1,124.09,124.08,8.0593]
[1720151359391,0.1,124.09,124.03,20.1558]
[1720151359592,6.0416,124.15,124.07,8.0596]
[1720151359771,6.0416,124.15,124.08,0.17]
[1720151359971,6.0416,124.15,124.08,20.17]
[1720151360197,6.0416,124.15,124.08,0.17]
[1720151360699,6.0416,124.15,124.06,20.0]
[1720151360880,14.0965,124.15,124.06,20.0]
[1720151361069,14.0965,124.15,124.01,20.1589]
[1720151361271,14.0965,124.15,124.03,8.062]
[1720151361574,14.0965,124.15,124.04,28.0617]
[1720151361776,8.0555,124.14,124.04,20.0]
[1720151362080,14.0964,124.15,124.04,8.0618]
[1720151362291,6.0416,124.15,124.05,20.17]
[1720151362476,8.0561,124.13,124.06,20.0]
[1720151362686,8.0568,124.12,124.03,20.0]
[1720151362871,6.0416,124.15,124.03,20.0]
[1720151362872,8.2262,124.13,124.03,20.0]
[1720151363495,8.0562,124.13,124.03,20.0]
[1720151363710,6.0416,124.15,124.03,20.0]
[1720151363999,6.0416,124.15,124.02,20.0]
[1720151364203,6.0416,124.15,124.06,8.0604]
[1720151364386,6.0416,124.15,124.07,20.17]
[1720151365078,6.0416,124.15,124.07,0.17]
[1720151365278,6.6285,124.19,124.1,8.0578]
[1720151365502,6.6285,124.19,124.11,20.17]
[1720151365688,6.6285,124.19,124.07,0.17]
[1720151365896,6.6285,124.19,124.1,20.1441]
[1720151366193,6.6285,124.19,124.11,20.17]
[1720151366368,6.6285,124.19,124.12,0.17]
[1720151366980,6.6285,124.19,124.12,20.17]
[1720151367381,6.6285,124.19,124.12,20.0]
[1720151367602,6.6285,124.19,124.07,40.1483]
[1720151367800,6.6285,124.19,124.09,8.0586]
[1720151367990,6.6285,124.19,124.1,40.1447]
[1720151368907,6.6285,124.19,124.11,0.17]
[1720151369279,6.6285,124.19,124.12,8.0566]
[1720151369579,6.6285,124.19,124.14,8.0552]
[1720151369782,6.6285,124.19,124.15,20.17]
[1720151370185,0.1,124.19,124.15,20.17]
[1720151370685,6.328,124.23,124.18,20.132]
[1720151370895,6.2548,124.28,124.19,20.17]
[1720151371075,6.2548,124.28,124.19,28.222]
[1720151371289,6.2548,124.28,124.19,20.17]
[1720151371891,6.2548,124.28,124.24,8.0487]
[1720151372102,6.2548,124.28,124.25,20.0]
[1720151372590,6.2548,124.28,124.23,0.17]
[1720151372819,6.2548,124.28,124.22,20.17]
[1720151372997,0.1,124.29,124.22,20.17]
[1720151373622,0.1,124.29,124.23,8.0491]
[1720151373923,0.1,124.29,124.24,20.17]
[1720151374502,0.1,124.29,124.25,20.0]
[1720151374708,0.1,124.29,124.24,0.17]
[1720151375000,0.1,124.29,124.23,0.17]
[1720151375200,0.1,124.29,124.23,8.2192]
[1720151375414,0.1,124.29,124.24,28.0487]
[1720151375597,0.1,124.29,124.25,20.17]
[1720151375799,0.1,124.29,124.26,0.17]
[1720151377827,0.1,124.29,124.28,8.0463]
[1720151377999,15.602,124.35,124.28,20.17]
[1720151378324,15.602,124.35,124.29,20.0]
[1720151378828,23.6439,124.35,124.25,20.0]
[1720151379028,23.6439,124.35,124.26,0.17]
[1720151379326,23.6439,124.35,124.2,275.4283]
[1720151379327,0.17,124.34,124.2,275.4283]
[1720151379533,8.0437,124.33,124.21,9.31508381]
[1720151379823,8.0433,124.33,124.21,9.31558381]
[1720151380035,8.0452,124.3,124.2,5.85762632]
[1720151380206,8.0452,124.3,124.18,398.1528]
[1720151380401,14.6105,124.31,124.19,8.052]
[1720151380807,8.045,124.3,124.19,8.052]
[1720151381129,8.0457,124.29,124.18,20.1308]
[1720151381437,8.0451,124.3,124.18,28.1835]
[1720151381650,8.0451,124.3,124.19,0.04848288]
[1720151381935,8.0458,124.29,124.18,25.77811222]
[1720151382923,14.6109,124.31,124.18,33.83051222]
[1720151383135,6.566,124.28,124.11,8.0567]
[1720151383422,0.17,124.27,124.1,8.0579]
[1720151383937,0.17,124.27,124.11,1.86387318]
[1720151384307,0.80573685,124.12,124.11,9.92117318]
[1720151384612,0.80573685,124.12,124.11,1.86387318]
[1720151385117,0.80573685,124.12,124.11,9.92117318]
[1720151386006,0.80573685,124.12,124.11,1.86387318]
[1720151386201,0.80573685,124.12,124.11,10.09117318]
[1720151386809,0.80573685,124.12,124.11,22.03387318]
[1720151387013,0.80573685,124.12,124.11,30.09117318]
[1720151387317,0.80573685,124.12,124.11,22.03387318]
[1720151387724,0.80573685,124.12,124.11,1.86387318]
[1720151389119,0.80573685,124.12,124.11,9.92117318]
[1720151389432,0.80573685,124.12,124.11,1.86387318]
[1720151390106,0.80573685,124.12,124.01,0.1]
[1720151390407,8.86243685,124.12,124.01,16.58303453]
[1720151390622,0.80573685,124.12,124.01,8.1638]
[1720151390833,8.86253685,124.12,124.01,0.1]
[1720151391025,0.80573685,124.12,124.01,0.1]
[1720151391228,0.80573685,124.12,124.03,8.0625]
[1720151391410,0.80573685,124.12,124.04,8.0618]
[1720151392327,0.80573685,124.12,124.05,0.17]
[1720151392518,0.80573685,124.12,124.04,8.2319]
[1720151392937,0.80573685,124.12,124.01,0.1]
[1720151392938,21.8548,124.11,124.01,0.1]
[1720151393246,20.3162,124.1,124.01,0.1]
[1720151393613,8.0613,124.05,124.01,0.1]
[1720151393817,8.0589,124.09,124.01,0.1]
[1720151394126,0.17,124.1,124.01,0.1]
[1720151394312,8.0599,124.07,124.01,0.1]
[1720151394513,21.8548,124.11,124.01,0.1]
[1720151395433,21.8548,124.11,124.02,8.063]
[1720151395651,21.8548,124.11,124.03,20.17]
[1720151395932,6.4454,124.11,124.03,28.2324]
[1720151396133,6.4454,124.11,124.04,8.0612]
[1720151396343,0.80573685,124.12,124.05,20.17]
[1720151396526,0.80573685,124.12,124.06,20.0]
[1720151396840,8.86263685,124.12,124.05,0.17]
[1720151397037,0.80573685,124.12,124.03,20.0]
[1720151397216,0.80573685,124.12,124.01,5.87669775]
[1720151397217,8.0576,124.11,124.01,5.87669775]
[1720151397442,0.80573685,124.12,124.02,20.0]
[1720151398020,8.86253685,124.12,124.02,20.0]
[1720151398342,8.0574,124.11,124.03,0.17]
[1720151398521,8.0581,124.1,124.02,20.0]
[1720151398717,8.0587,124.09,124.02,20.0]
[1720151398916,8.0584,124.1,124.02,20.0]
[1720151399134,8.0575,124.11,124.02,20.0]
[1720151399736,8.058,124.1,124.02,20.0]
[1720151399929,8.058,124.1,124.03,0.17]
[1720151400124,8.0574,124.11,124.03,0.17]
[1720151400327,20.3143,124.11,124.01,0.1]
[1720151400636,6.1755,124.1,124.01,0.1]
[1720151401017,6.1755,124.1,124.03,8.0624]
[1720151401214,14.2337,124.1,124.01,0.1]
[1720151401529,8.06,124.07,124.01,0.1]
[1720151401729,8.0593,124.08,124.01,0.1]
[1720151402040,15.6048,124.07,124.01,0.1]
[1720151402215,0.17,124.06,124.01,0.1]
[1720151402635,8.062,124.04,124.01,0.1]
[1720151402839,0.17,124.06,124.01,0.1]
[1720151403653,0.17,124.06,123.91,0.1]
[1720151403654,68.4057,124.05,123.91,0.1]
[1720151403937,8.0651,124.0,123.91,0.1]
[1720151404141,0.17,124.01,123.91,0.1]
[1720151404317,0.80573685,123.92,123.91,0.1]
[1720151408035,8.87543685,123.92,123.91,0.1]
[1720151408544,0.80573685,123.92,123.91,0.1]
[1720151409338,8.87543685,123.92,123.91,0.1]
[1720151409533,0.80573685,123.92,123.91,0.1]
[1720151411349,14.2876,124.08,123.94,20.1701]
[1720151411554,8.0603,124.07,123.95,28.0675]
[1720151411747,62.26,124.12,123.97,20.1652]
[1720151411748,8.0578,124.11,123.97,20.1652]
[1720151411953,28.56490741,124.25,124.02,124.52]
[1720151412255,6.2282,124.25,124.1,8.0573]
[1720151412469,6.2282,124.25,124.11,40.3132]
[1720151412655,6.2282,124.25,124.12,8.0566]
[1720151412845,88.6092,124.25,124.13,20.0]
[1720151413161,8.0508,124.22,124.11,20.17]
[1720151413463,8.0535,124.17,124.11,20.0]
[1720151413757,8.0535,124.17,124.03,1.86507539]
[1720151413758,8.0532,124.18,124.05,20.1531]
[1720151413925,82.3862,124.22,124.03,1.86507539]
[1720151413926,8.0548,124.15,124.06,20.17]
[1720151414264,82.3906,124.19,124.03,21.86507539]
[1720151414461,8.0566,124.13,124.03,1.86507539]
[1720151414751,82.3906,124.19,124.03,1.86507539]
[1720151414972,8.056,124.14,124.03,1.86507539]
[1720151415167,8.2261,124.13,124.03,1.86507539]
[1720151415330,0.17,124.13,124.03,1.86507539]
[1720151416256,8.2265,124.13,124.03,1.86507539]
[1720151416646,5.9419322,124.17,124.03,1.86507539]
[1720151416858,8.0563,124.13,124.03,1.86507539]